fUST/lending_fUST_20240408
["ID","MTS","AMOUNT","RATE_DAILY","PERIOD"]
[321847920,1712562658764,-574.73240502,0.0003,2]
[321847921,1712562658773,-663040.97187802,0.0003,7]
[321847922,1712562658782,-33281.12829558,0.0003,7]
[321847923,1712562658791,-378.15388326,0.0003,10]
[321847924,1712562658801,-500.0,0.0003,2]
[321847925,1712562658810,-45052.53580217,0.0003,5]
[321847926,1712562658819,-258.0,0.0003,2]
[321847927,1712562658828,-267.56866356,0.0003,2]
[321847928,1712562658838,-160.0,0.00030019,4]
[321847929,1712562658847,-160.0,0.00030114,5]
[321847930,1712562658857,-645.79,0.00030136,2]
[321847931,1712562658866,-905.93,0.00030136,2]
[321847932,1712562658875,-639.69,0.00030136,2]
[321847933,1712562658884,-500.0,0.00030136,2]
[321847934,1712562658894,-2551.9,0.00030136,2]
[321847935,1712562658903,-537.05,0.00030136,2]
[321847936,1712562658913,-701.21,0.00030136,2]
[321847937,1712562658922,-539.51,0.00030136,2]
[321847938,1712562658931,-718.57,0.00030136,2]
[321847939,1712562658942,-693.34,0.00030136,2]
[321847940,1712562658951,-1033.43,0.00030136,2]
[321847941,1712562658960,-500.0,0.00030136,2]
[321847942,1712562658969,-2825.18,0.00030136,2]
[321847943,1712562658978,-1320.93,0.00030136,2]
[321847944,1712562658987,-978.67,0.00030136,2]
[321847945,1712562658996,-4435.2,0.00030136,2]
[321847946,1712562659006,-4257.06,0.00030136,2]
[321847947,1712562659015,-3460.88,0.00030136,2]
[321847948,1712562659024,-638.52,0.00030136,2]
[321847949,1712562659033,-621.78766803,0.00030136,2]
[321847950,1712562659042,-9186.73,0.00030136,2]
[321847951,1712562659051,-583.7,0.00030136,2]
[321847952,1712562659060,-631.35,0.00030136,2]
[321847953,1712562659069,-3081.78,0.00030136,2]
[321847954,1712562659078,-956.28,0.00030136,2]
[321847955,1712562659087,-500.0,0.00030136,2]
[321847956,1712562659096,-16438.35,0.00030136,2]
[321847957,1712562659105,-3926.54,0.00030136,2]
[321847958,1712562659114,-823.66,0.00030136,2]
[321847959,1712562659123,-1028.84,0.00030136,2]
[321847960,1712562659132,-500.0,0.00030136,2]
[321847961,1712562659142,-1864.26,0.00030136,2]
[321847962,1712562659151,-782.37,0.00030136,2]
[321847963,1712562659160,-5545.12,0.00030136,2]
[321847964,1712562659171,-1977.17,0.00030136,2]
[321847965,1712562659180,-627.35,0.00030136,2]
[321847966,1712562659193,-765.09,0.00030136,2]
[321847967,1712562659202,-532.81,0.00030136,2]
[321847968,1712562659213,-1192.42,0.00030136,2]
[321847969,1712562659221,-1164.07,0.00030136,2]
[321847970,1712562659230,-572.8,0.00030136,2]
[321847971,1712562659239,-500.0,0.00030191,2]
[321847972,1712562659249,-334.308849,0.000302,2]
[321847973,1712562659259,-160.0,0.0003021,6]
[321847974,1712562659269,-500.0,0.00030246,2]
[321847975,1712562659279,-500.0,0.00030301,2]
[321847976,1712562659288,-160.0,0.00030305,7]
[321847977,1712562659297,-500.0,0.00030356,2]
[321847978,1712562659306,-150.0,0.00030399,2]
[321847979,1712562659316,-193.57252445,0.000304,2]
[321847980,1712562659326,-160.0,0.00030401,8]
[321847981,1712562659335,-645.79,0.0003041,2]
[321847982,1712562659344,-905.93,0.0003041,2]
[321847983,1712562659355,-639.69,0.0003041,2]
[321847984,1712562659365,-500.0,0.0003041,2]
[321847985,1712562659376,-2551.9,0.0003041,2]
[321847986,1712562659387,-537.05,0.0003041,2]
[321847987,1712562659398,-701.21,0.0003041,2]
[321847988,1712562659408,-539.51,0.0003041,2]
[321847989,1712562659418,-718.57,0.0003041,2]
[321847990,1712562659478,-693.34,0.0003041,2]
[321847991,1712562659490,-1033.43,0.0003041,2]
[321847992,1712562659501,-619.46304716,0.0003041,2]
[321847993,1712562659512,-2825.18,0.0003041,2]
[321847994,1712562659522,-1320.93,0.0003041,2]
[321847995,1712562659533,-978.67,0.0003041,2]
[321847996,1712562659543,-4435.2,0.0003041,2]
[321847997,1712562659554,-4257.06,0.0003041,2]
[321847998,1712562659565,-3460.88,0.0003041,2]
[321847999,1712562659575,-638.52,0.0003041,2]
[321848000,1712562659586,-9186.73,0.0003041,2]
[321848001,1712562659596,-583.7,0.0003041,2]
[321848002,1712562659605,-631.35,0.0003041,2]
[321848003,1712562659615,-3081.78,0.0003041,2]
[321848004,1712562659625,-956.28,0.0003041,2]
[321848005,1712562659634,-500.0,0.0003041,2]
[321848006,1712562659643,-16438.35,0.0003041,2]
[321848007,1712562659652,-3926.54,0.0003041,2]
[321848008,1712562659662,-823.66,0.0003041,2]
[321848009,1712562659672,-1028.84,0.0003041,2]
[321848010,1712562659681,-500.0,0.0003041,2]
[321848011,1712562659694,-1864.26,0.0003041,2]
[321848012,1712562659704,-782.37,0.0003041,2]
[321848013,1712562659713,-5545.12,0.0003041,2]
[321848014,1712562659723,-627.35,0.0003041,2]
[321848015,1712562659733,-1977.17,0.0003041,2]
[321848016,1712562659742,-765.09,0.0003041,2]
[321848017,1712562659751,-532.81,0.0003041,2]
[321848018,1712562659761,-1192.42,0.0003041,2]
[321848019,1712562659770,-1164.07,0.0003041,2]
[321848020,1712562659779,-572.8,0.0003041,2]
[321848021,1712562659788,-150.95471359,0.00030444,2]
[321848022,1712562659798,-250.41575527,0.00030444,2]
[321848023,1712562659809,-500.0,0.00030465,2]
[321848024,1712562659823,-160.0,0.00030496,9]
[321848025,1712562659833,-500.0,0.000305,2]
[321848026,1712562659843,-500.0,0.0003052,2]
[321848027,1712562659853,-500.0,0.00030575,2]
[321848028,1712562659867,-160.0,0.00030592,10]
[321848029,1712562659886,-500.0,0.0003063,2]
[321848030,1712562659901,-645.79,0.00030684,2]
[321848031,1712562659919,-905.93,0.00030684,2]
[321848032,1712562659935,-639.69,0.00030684,2]
[321848033,1712562659956,-473.13748672,0.00030684,2]
[321848034,1712562659974,-2551.9,0.00030684,2]
[321848035,1712562659991,-537.05,0.00030684,2]
[321848036,1712562660010,-701.21,0.00030684,2]
[321848037,1712562660026,-539.51,0.00030684,2]
[321848038,1712562660043,-718.57,0.00030684,2]
[321848039,1712562660064,-693.34,0.00030684,2]
[321848040,1712562660078,-1033.43,0.00030684,2]
[321848041,1712562660094,-2825.18,0.00030684,2]
[321848042,1712562660111,-1320.93,0.00030684,2]
[321848043,1712562660124,-978.67,0.00030684,2]
[321848044,1712562660140,-4435.2,0.00030684,2]
[321848045,1712562660155,-4257.06,0.00030684,2]
[321848046,1712562660170,-3460.88,0.00030684,2]
[321848047,1712562660195,-638.52,0.00030684,2]
[321848048,1712562660209,-9186.73,0.00030684,2]
[321848049,1712562660224,-583.7,0.00030684,2]
[321848050,1712562660238,-631.35,0.00030684,2]
[321848051,1712562660253,-3081.78,0.00030684,2]
[321848052,1712562660269,-956.28,0.00030684,2]
[321848053,1712562660284,-16438.35,0.00030684,2]
[321848054,1712562660300,-500.0,0.00030684,2]
[321848055,1712562660314,-3926.54,0.00030684,2]
[321848056,1712562660329,-823.66,0.00030684,2]
[321848057,1712562660344,-1028.84,0.00030684,2]
[321848058,1712562660359,-156.99318088,0.00030684,2]
[321848059,1712562660373,-1864.26,0.00030684,2]
[321848060,1712562660390,-782.37,0.00030684,2]
[321848061,1712562660406,-5545.12,0.00030684,2]
[321848062,1712562660422,-627.35,0.00030684,2]
[321848063,1712562660437,-1977.17,0.00030684,2]
[321848064,1712562660458,-765.09,0.00030684,2]
[321848065,1712562660473,-532.81,0.00030684,2]
[321848066,1712562660555,-1192.42,0.00030684,2]
[321848067,1712562660568,-1164.07,0.00030684,2]
[321848068,1712562660577,-572.8,0.00030684,2]
[321848069,1712562660587,-160.0,0.00030687,11]
[321848070,1712562660596,-1152.0,0.00030692,2]
[321848071,1712562660607,-500.0,0.00030739,2]
[321848072,1712562660616,-160.0,0.00030783,12]
[321848073,1712562660625,-500.0,0.00030794,2]
[321848074,1712562660635,-500.0,0.00030849,2]
[321848075,1712562660645,-160.0,0.00030878,13]
[321848076,1712562660654,-500.0,0.00030904,2]
[321848077,1712562660663,-301.90942717,0.00030956,4]
[321848078,1712562660672,-646.00049386,0.00030958,2]
[321848079,1712562660681,-905.97007523,0.00030958,2]
[321848080,1712562660691,-639.72718886,0.00030958,2]
[321848081,1712562660701,-2551.90459535,0.00030958,2]
[321848082,1712562660710,-537.07691914,0.00030958,2]
[321848083,1712562660720,-701.3869438,0.00030958,2]
[321848084,1712562660729,-539.6691171,0.00030958,2]
[321848085,1712562660739,-718.68269731,0.00030958,2]
[321848086,1712562660749,-693.57990573,0.00030958,2]
[321848087,1712562660759,-1033.44518426,0.00030958,2]
[321848088,1712562660768,-2825.24054991,0.00030958,2]
[321848089,1712562660778,-1321.0349008,0.00030958,2]
[321848090,1712562660787,-978.67928104,0.00030958,2]
[321848091,1712562660796,-4435.3203942,0.00030958,2]
[321848092,1712562660806,-4257.09325895,0.00030958,2]
[321848093,1712562660815,-3461.02379296,0.00030958,2]
[321848094,1712562660824,-638.72568326,0.00030958,2]
[321848095,1712562660833,-9186.89261319,0.00030958,2]
[321848096,1712562660843,-583.84092594,0.00030958,2]
[321848097,1712562660852,-631.49766775,0.00030958,2]
[321848098,1712562660862,-3082.00070548,0.00030958,2]
[321848099,1712562660871,-956.42693387,0.00030958,2]
[321848100,1712562660881,-16438.49904787,0.00030958,2]
[321848101,1712562660891,-500.0,0.00030958,2]
[321848102,1712562660900,-3926.69665554,0.00030958,2]
[321848103,1712562660909,-823.77194228,0.00030958,2]
[321848104,1712562660919,-1028.86912169,0.00030958,2]
[321848105,1712562660928,-1864.41211195,0.00030958,2]
[321848106,1712562660938,-782.39930365,0.00030958,2]
[321848107,1712562660949,-5545.17818786,0.00030958,2]
[321848108,1712562660958,-627.51032343,0.00030958,2]
[321848109,1712562660967,-1977.34866495,0.00030958,2]
[321848110,1712562660976,-765.09329934,0.00030958,2]
[321848111,1712562660985,-532.90594293,0.00030958,2]
[321848112,1712562660994,-1192.5222524,0.00030958,2]
[321848113,1712562661003,-1164.20849555,0.00030958,2]
[321848114,1712562661014,-572.91205546,0.00030958,2]
[321848115,1712562661024,-160.0,0.00030974,14]
[321848116,1712562661034,-1957.36845499,0.00031,2]
[321848117,1712562661043,-500.0,0.00031,2]
[321848118,1712562661053,-500.0,0.00031013,2]
[321848119,1712562661063,-500.0,0.00031068,2]
[321848120,1712562661073,-160.0,0.00031069,15]
[321848121,1712562661082,-500.0,0.00031123,2]
[321848122,1712562661091,-160.0,0.00031165,16]
[321848123,1712562661100,-500.0,0.00031178,2]
[321848124,1712562661109,-500.0,0.00031232,2]
[321848125,1712562661118,-160.0,0.0003126,17]
[321848126,1712562661127,-500.0,0.00031287,2]
[321848127,1712562661136,-500.0,0.00031342,2]
[321848128,1712562661145,-160.0,0.00031356,18]
[321848129,1712562661154,-156.73208261,0.00031397,2]
[321848130,1712562661164,-150.0,0.00031399,2]
[321848131,1712562661184,-160.0,0.00031451,19]
[321848132,1712562661200,-603.81885434,0.00031476,7]
[321848133,1712562661210,-500.0,0.000315,2]
[321848134,1712562661220,-2000.0,0.000315,2]
[321848135,1712562661229,-365.0919454,0.00031507,2]
[321848136,1712562661238,-2000.0,0.0003151,2]
[321848137,1712562661248,-2000.0,0.0003152,2]
[321848138,1712562661258,-2000.0,0.0003153,2]
[321848139,1712562661268,-2000.0,0.0003154,2]
[321848140,1712562661277,-160.0,0.00031547,20]
[321848141,1712562661288,-2000.0,0.0003155,2]
[321848142,1712562661297,-2000.0,0.0003156,2]
[321848143,1712562661307,-2000.0,0.0003157,2]
[321848144,1712562661316,-2000.0,0.0003158,2]
[321848145,1712562661325,-2000.0,0.0003159,2]
[321848146,1712562661334,-2000.0,0.000316,2]
[321848147,1712562661343,-2000.0,0.0003161,2]
[321848148,1712562661352,-2000.0,0.0003162,2]
[321848149,1712562661362,-2000.0,0.0003163,2]
[321848150,1712562661371,-2000.0,0.0003164,2]
[321848151,1712562661382,-160.0,0.00031642,21]
[321848152,1712562661391,-2000.0,0.0003165,2]
[321848153,1712562661400,-2000.0,0.0003166,2]
[321848154,1712562661409,-2000.0,0.0003167,2]
[321848155,1712562661418,-2000.0,0.0003168,2]
[321848156,1712562661430,-2814.945673,0.0003169,2]
[321848157,1712562661439,-160.0,0.00031738,22]
[321848158,1712562661450,-306.0,0.00031781,2]
[321848159,1712562661459,-306.0,0.00031781,2]
[321848160,1712562661469,-160.0,0.00031833,23]
[321848161,1712562661478,-160.0,0.00031929,24]
[321848162,1712562661488,-190.69912324,0.00032,4]
[321848163,1712562661497,-500.0,0.00032,2]
[321848164,1712562661506,-500.0,0.00032,2]
[321848165,1712562661516,-166.94383685,0.00032005,4]
[321848166,1712562661526,-160.0,0.00032025,25]
[321848167,1712562661536,-153.0,0.00032055,2]
[321848168,1712562661546,-160.0,0.0003212,26]
[321848169,1712562661556,-160.0,0.00032216,27]
[321848170,1712562661566,-1152.0,0.00032228,2]
[321848171,1712562661576,-1207.63770869,0.00032273,30]
[321848172,1712562661585,-391.0731801,0.00032274,2]
[321848173,1712562661648,-150.5,0.00032277,35]
[321848174,1712562661658,-150.5,0.00032287,35]
[321848175,1712562661667,-150.5,0.00032297,35]
[321848176,1712562661676,-4078.051849,0.00032307,2]
[321848177,1712562661685,-159.996275,0.00032307,2]
[321848178,1712562661696,-4109.273183,0.00032307,2]
[321848179,1712562661705,-199.900961,0.00032307,2]
[321848180,1712562661714,-160.0,0.00032311,28]
[321848181,1712562661723,-251.18130504,0.00032361,2]
[321848182,1712562661732,-150.0,0.00032399,2]
[321848183,1712562661741,-160.0,0.00032407,29]
[321848184,1712562661751,-500.0,0.000325,2]
[321848185,1712562661760,-160.0,0.00032502,30]
[321848186,1712562661770,-160.0,0.00032598,31]
[321848187,1712562661780,-405.2064605,0.00032603,2]
[321848188,1712562661790,-2061.5678772,0.0003269,2]
[321848189,1712562661799,-160.0,0.00032693,32]
[321848190,1712562661809,-4078.051849,0.00032711,2]
[321848191,1712562661818,-4109.273183,0.00032711,2]
[321848192,1712562661828,-202.7046065,0.0003274,2]
[321848193,1712562661837,-160.0,0.00032789,33]
[321848194,1712562661847,-261.3554141,0.00032876,2]
[321848195,1712562661856,-151.0,0.00032877,2]
[321848196,1712562661866,-151.0,0.00032877,2]
[321848197,1712562661876,-151.0,0.00032877,2]
[321848198,1712562661885,-151.0,0.00032877,2]
[321848199,1712562661895,-151.0,0.00032877,2]
[321848200,1712562661905,-151.0,0.00032877,2]
[321848201,1712562661915,-151.0,0.00032877,2]
[321848202,1712562661925,-151.0,0.00032877,2]
[321848203,1712562661934,-151.0,0.00032877,2]
[321848204,1712562661946,-151.0,0.00032877,2]
[321848205,1712562661955,-207.506909,0.00032877,2]
[321848206,1712562661964,-160.0,0.00032884,34]
[321848207,1712562661974,-160.0,0.0003298,35]
[321848208,1712562661983,-207.59877459,0.0003298,5]
[321848209,1712562661992,-500.0,0.00033,2]
[321848210,1712562662003,-258.0,0.00033,2]
[321848211,1712562662012,-258.0,0.00033,2]
[321848212,1712562662022,-593.76873474,0.0003305,6]
[321848213,1712562662031,-4078.051849,0.00033115,2]
[321848214,1712562662041,-4109.273183,0.00033115,2]
[321848215,1712562662051,-281.503435,0.00033165,2]
[321848216,1712562662060,-1613.0,0.00033351,2]
[321848217,1712562662069,-150.0,0.00033399,2]
[321848218,1712562662079,-500.0,0.000335,2]
[321848219,1712562662089,-4078.051849,0.00033519,2]
[321848220,1712562662098,-4109.273183,0.00033519,2]
[321848221,1712562662107,-153.0,0.00033616,2]
[321848222,1712562662116,-154.8671497,0.00033616,2]
[321848223,1712562662126,-153.0,0.00033616,2]
[321848224,1712562662135,-153.0,0.00033616,2]
[321848225,1712562662145,-2061.5678772,0.0003369,2]
[321848226,1712562662154,-4078.051849,0.00033923,2]
[321848227,1712562662164,-4109.273183,0.00033923,2]
[321848228,1712562662177,-306.0,0.00033973,2]
[321848229,1712562662186,-464.42260257,0.00034,4]
[321848230,1712562662198,-1000.0,0.00034,2]
[321848231,1712562662207,-1000.0,0.00034,2]
[321848232,1712562662219,-1000.0,0.00034,2]
[321848233,1712562662228,-1000.0,0.00034,2]
[321848234,1712562662237,-500.0,0.00034,2]
[321848235,1712562662248,-1000.0,0.00034,2]
[321848236,1712562662257,-153.0,0.00034438,2]
[321848237,1712562662266,-153.0,0.00034438,2]
[321848238,1712562662276,-446.7790251,0.00034438,2]
[321848239,1712562662286,-153.0,0.00034438,2]
[321848240,1712562662295,-404.1479875,0.00034438,2]
[321848241,1712562662304,-153.0,0.00034438,2]
[321848242,1712562662313,-153.0,0.00034438,2]
[321848243,1712562662324,-500.0,0.000345,2]
[321848244,1712562662333,-2061.5678772,0.0003469,2]
[321848245,1712562662343,-319.88118119,0.000349,110]
[321848246,1712562662352,-188.67573088,0.000349,115]
[321848247,1712562662362,-155.02015262,0.00035,4]
[321848248,1712562662371,-595.86148215,0.00035,2]
[321848249,1712562662381,-6852.24494975,0.00035,4]
[321848250,1712562662390,-2000.0,0.00035,2]
[321848251,1712562662399,-158.10363724,0.00035,30]
[321848252,1712562662408,-175.81760816,0.00035,30]
[321848253,1712562662417,-10239.17098936,0.00035,2]
[321848254,1712562662426,-155.7063309,0.00035,2]
[321848255,1712562662436,-26557.1917302,0.00035,7]
[321848256,1712562662446,-58223.1187343,0.00035,60]
[321848257,1712562662456,-531.59682047,0.00035,2]
[321848258,1712562662465,-2126.44037264,0.00035,4]
[321848259,1712562662474,-738.086757,0.000351,2]
[321848260,1712562662483,-1613.0,0.00035451,2]
[321848261,1712562662492,-788.42,0.00035616,2]
[321848262,1712562662502,-788.42,0.00035616,2]
[321848263,1712562662512,-788.42,0.00035616,2]
[321848264,1712562662521,-788.42,0.00035616,2]
[321848265,1712562662531,-788.42,0.00035616,2]
[321848266,1712562662540,-788.42,0.00035616,2]
[321848267,1712562662550,-788.42,0.00035616,2]
[321848268,1712562662559,-788.42,0.00035616,2]
[321848269,1712562662568,-788.42,0.00035616,2]
[321848270,1712562662577,-788.42,0.00035616,2]
[321848271,1712562662587,-788.42,0.00035616,2]
[321848272,1712562662646,-788.42,0.00035616,2]
[321848273,1712562662656,-788.42,0.00035616,2]
[321848274,1712562662665,-788.42,0.00035616,2]
[321848275,1712562662675,-788.42,0.00035616,2]
[321848276,1712562662684,-788.42,0.00035616,2]
[321848277,1712562662694,-788.42,0.00035616,2]
[321848278,1712562662705,-788.42,0.00035616,2]
[321848279,1712562662715,-788.42,0.00035616,2]
[321848280,1712562662724,-788.42,0.00035616,2]
[321848281,1712562662734,-788.42,0.00035616,2]
[321848282,1712562662743,-788.42,0.00035616,2]
[321848283,1712562662752,-788.42,0.00035616,2]
[321848284,1712562662762,-788.43625944,0.00035616,2]
[321848285,1712562662772,-2061.5678772,0.0003569,2]
[321848286,1712562662781,-2080.0639671,0.00036,14]
[321848287,1712562662790,-258.0,0.00036,2]
[321848288,1712562662799,-258.0,0.00036,2]
[321848289,1712562662809,-258.0,0.00036,2]
[321848290,1712562662818,-255.54938131,0.0003624,2]
[321848291,1712562662827,-153.0,0.00036438,2]
[321848292,1712562662838,-153.0,0.00036438,2]
[321848293,1712562662847,-153.0,0.00036438,2]
[321848294,1712562662858,-2061.5678772,0.0003669,2]
[321848295,1712562662868,-593.76873474,0.00036726,8]
[321848296,1712562662877,-1976.0,0.0003697,35]
[321848297,1712562662886,-1976.0,0.0003698,35]
[321848298,1712562662895,-917.949671,0.00036986,120]
[321848299,1712562662905,-1976.0,0.0003699,35]
[321848300,1712562662914,-157.94758055,0.00037027,7]
[321848301,1712562662923,-153.15754502,0.00037123,7]
[321848302,1712562662933,-153.15754502,0.00037135,7]
[321848303,1712562662945,-157.94758055,0.00037198,7]
[321848304,1712562662954,-153.15754502,0.00037258,7]
[321848305,1712562662964,-1288.4799232,0.0003736,2]
[321848306,1712562662973,-157.94758055,0.00037444,7]
[321848307,1712562662983,-153.15754502,0.00037485,7]
[321848308,1712562662992,-153.15754502,0.00037579,7]
[321848309,1712562663002,-153.0,0.00037589,2]
[321848310,1712562663012,-153.0,0.00037589,2]
[321848311,1712562663021,-153.0,0.00037589,2]
[321848312,1712562663031,-153.51768997,0.0003778,7]
[321848313,1712562663042,-153.51768997,0.00037805,7]
[321848314,1712562663052,-153.15754502,0.00037863,7]
[321848315,1712562663063,-222.67377064,0.00037935,7]
[321848316,1712562663074,-3827.0,0.00038,5]
[321848317,1712562663085,-1295.0,0.00038,120]
[321848318,1712562663096,-27188.35091321,0.00038,2]
[321848319,1712562663106,-159.0,0.00038,2]
[321848320,1712562663117,-153.51768997,0.00038068,7]
[321848321,1712562663127,-153.51768997,0.00038121,7]
[321848322,1712562663137,-157.94758055,0.00038128,7]
[321848323,1712562663147,-1076.3739,0.0003815,30]
[321848324,1712562663156,-153.15754502,0.00038157,7]
[321848325,1712562663167,-153.51768997,0.00038194,7]
[321848326,1712562663176,-1288.4799232,0.0003836,2]
[321848327,1712562663185,-158.42354783,0.00038417,7]
[321848328,1712562663199,-153.51768997,0.00038431,7]
[321848329,1712562663208,-800.51327954,0.00038562,120]
[321848330,1712562663219,-153.15754502,0.00038576,7]
[321848331,1712562663228,-153.0,0.00038603,2]
[321848332,1712562663238,-159.0,0.0003863,14]
[321848333,1712562663247,-153.51768997,0.0003873,7]
[321848334,1712562663257,-153.15754502,0.00038842,7]
[321848335,1712562663266,-155.06357607,0.0003889,7]
[321848336,1712562663277,-153.51768997,0.00038902,7]
[321848337,1712562663287,-281.503435,0.00038933,2]
[321848338,1712562663296,-157.94758055,0.00038941,7]
[321848339,1712562663305,-2258.0,0.00038996,3]
[321848340,1712562663315,-9129.6149598,0.00039,30]
[321848341,1712562663324,-12052.97675326,0.00039,2]
[321848342,1712562663334,-89750.0,0.00039,2]
[321848343,1712562663343,-165.90029737,0.00039,5]
[321848344,1712562663353,-258.0,0.00039,2]
[321848345,1712562663362,-258.0,0.00039,2]
[321848346,1712562663371,-258.0,0.00039,2]
[321848347,1712562663381,-153.51768997,0.00039048,7]
[321848348,1712562663390,-2415.27541737,0.00039091,120]
[321848349,1712562663399,-153.15754502,0.00039137,7]
[321848350,1712562663408,-5000.0,0.0003914,3]
[321848351,1712562663418,-153.15754502,0.00039177,7]
[321848352,1712562663428,-153.51768997,0.00039216,7]
[321848353,1712562663437,-153.15754502,0.000393,7]
[321848354,1712562663448,-153.51768997,0.00039335,7]
[321848355,1712562663457,-1288.4799232,0.0003936,2]
[321848356,1712562663467,-153.51768997,0.00039382,7]
[321848357,1712562663476,-153.51768997,0.00039512,7]
[321848358,1712562663486,-200.0,0.00039578,7]
[321848359,1712562663495,-153.51768997,0.00039638,7]
[321848360,1712562663504,-153.51768997,0.00039673,7]
[321848361,1712562663514,-157.94758055,0.0003971,7]
[321848362,1712562663523,-319.01,0.00039725,2]
[321848363,1712562663532,-319.01,0.00039725,2]
[321848364,1712562663588,-319.01,0.00039725,2]
[321848365,1712562663597,-319.01,0.00039725,2]
[321848366,1712562663606,-319.01,0.00039725,2]
[321848367,1712562663615,-319.01,0.00039725,2]
[321848368,1712562663624,-319.01,0.00039725,2]
[321848369,1712562663633,-319.01,0.00039725,2]
[321848370,1712562663642,-319.01,0.00039725,2]
[321848371,1712562663651,-319.01,0.00039725,2]
[321848372,1712562663660,-500.0,0.00039726,5]
[321848373,1712562663670,-518.43801111,0.00039726,5]
[321848374,1712562663679,-279.57315203,0.00039726,30]
[321848375,1712562663688,-2485.51,0.00039726,2]
[321848376,1712562663699,-2485.51,0.00039726,2]
[321848377,1712562663708,-2485.51,0.00039726,2]
[321848378,1712562663717,-2485.51,0.00039726,2]
[321848379,1712562663727,-2485.51,0.00039726,2]
[321848380,1712562663736,-2485.51,0.00039726,2]
[321848381,1712562663746,-2485.51,0.00039726,2]
[321848382,1712562663757,-2485.51,0.00039726,2]
[321848383,1712562663766,-2485.51,0.00039726,2]
[321848384,1712562663775,-2485.51,0.00039726,2]
[321848385,1712562663784,-2485.51,0.00039726,2]
[321848386,1712562663794,-2485.51,0.00039726,2]
[321848387,1712562663803,-2485.51,0.00039726,2]
[321848388,1712562663812,-2485.51,0.00039726,2]
[321848389,1712562663821,-2485.51,0.00039726,2]
[321848390,1712562663831,-2485.51,0.00039726,2]
[321848391,1712562663841,-2485.51,0.00039726,2]
[321848392,1712562663850,-2485.51,0.00039726,2]
[321848393,1712562663859,-2485.51,0.00039726,2]
[321848394,1712562663869,-2485.51,0.00039726,2]
[321848395,1712562663886,-2485.51,0.00039726,2]
[321848396,1712562663896,-2485.51,0.00039726,2]
[321848397,1712562663905,-2485.70313411,0.00039726,2]
[321848398,1712562663915,-153.51768997,0.00039874,7]
[321848399,1712562663925,-173.64,0.0003988,35]
[321848400,1712562663935,-1976.0,0.0003988,35]
[321848401,1712562663947,-150.5,0.0003989,35]
[321848402,1712562663956,-1976.0,0.0003989,35]
[321848403,1712562663966,-153.0,0.0003989,2]
[321848404,1712562663976,-400.43520891,0.000399,2]
[321848405,1712562663986,-1086.88077944,0.000399,10]
[321848406,1712562663996,-1400.14937621,0.00039999,3]
[321848407,1712562664005,-3563.99130963,0.0004,4]
[321848408,1712562664015,-278.48,0.0004,120]
[321848409,1712562664025,-720777.78064523,0.0004,5]
[321848410,1712562664132,-5391.59072876,0.0004,5]
[321848411,1712562664144,-23856.17338324,0.0004,5]
[321848412,1712562664164,-7435.1766128,0.0004,5]
[321848413,1712562664263,-1930.22588294,0.00024655,2]
[321848414,1712562664274,-524.59337771,0.00024655,2]
[321848415,1712562664284,-156.05243909,0.00024655,2]
[321848416,1712562664293,-409.36800726,0.00024656,2]
[321848417,1712562664302,-409.65854067,0.00024656,2]
[321848418,1712562664367,-396.61256418,0.00024656,2]
[321848419,1712562664378,-5564.97168216,0.00025478,2]